[Event "Titled Tuesday Blitz March 21 Late 2023"]
[White "O`Gorman, Tom"]
[Black "Itkis, Boris"]
[WhiteFideId "2508249"]
[BlackFideId "1209167"]
[WhiteElo "2271"]
[BlackElo "2216"]
[Result "1-0"]
[Round "01"]
[TimeControl "180+2"]
[Date "2023.03.21"]
[WhiteClock "0:00:26"]
[BlackClock "0:00:44"]

1. Nf3 {[%clk 0:02:55]}  d5 {[%clk 0:02:59]} 2. c4 {[%clk 0:02:54]}  d4 {[%clk 0:02:59]} 3. e3 {[%clk 0:02:51]}  Nc6 {[%clk 0:02:58]} 4. exd4 {[%clk 0:02:51]}  Nxd4 {[%clk 0:02:58]} 5. Nxd4 {[%clk 0:02:51]}  Qxd4 {[%clk 0:02:59]} 6. Nc3 {[%clk 0:02:50]}  e5 {[%clk 0:02:59]} 7. d3 {[%clk 0:02:50]}  Nf6 {[%clk 0:02:55]} 8. Be3 {[%clk 0:02:50]}  Qd6 {[%clk 0:02:52]} 9. Be2 {[%clk 0:02:48]}  c6 {[%clk 0:02:35]} 10. O-O {[%clk 0:02:46]}  Be7 {[%clk 0:02:35]} 11. d4 {[%clk 0:02:45]}  exd4 {[%clk 0:02:35]} 12. Qxd4 {[%clk 0:02:45]}  O-O {[%clk 0:02:35]} 13. Rad1 {[%clk 0:02:44]}  Qb4 {[%clk 0:02:28]} 14. Rd2 {[%clk 0:02:31]}  Be6 {[%clk 0:02:21]} 15. a3 {[%clk 0:02:31]}  Qb3 {[%clk 0:02:15]} 16. Qd3 {[%clk 0:02:02]}  Rfd8 {[%clk 0:02:06]} 17. Qc2 {[%clk 0:02:02]}  Bxc4 {[%clk 0:02:04]} 18. Bxc4 {[%clk 0:01:57]}  Qxc4 {[%clk 0:02:04]} 19. Rxd8+ {[%clk 0:01:55]}  Bxd8 {[%clk 0:01:51]} 20. Rd1 {[%clk 0:01:55]}  Bb6 {[%clk 0:01:51]} 21. Bxb6 {[%clk 0:01:51]}  axb6 {[%clk 0:01:52]} 22. Qf5 {[%clk 0:01:50]}  h6 {[%clk 0:01:45]} 23. h3 {[%clk 0:01:49]}  Qc5 {[%clk 0:01:39]} 24. Qf4 {[%clk 0:01:44]}  Re8 {[%clk 0:01:36]} 25. Qc7 {[%clk 0:01:41]}  Re7 {[%clk 0:01:35]} 26. Qd8+ {[%clk 0:01:37]}  Kh7 {[%clk 0:01:32]} 27. Na4 {[%clk 0:01:30]}  Qc2 {[%clk 0:01:19]} 28. Nc3 {[%clk 0:01:12]}  Re6 {[%clk 0:01:02]} 29. Qxb6 {[%clk 0:01:08]}  Nd5 {[%clk 0:00:58]} 30. Qd4 {[%clk 0:01:04]}  Nxc3 {[%clk 0:00:55]} 31. bxc3 {[%clk 0:01:01]}  Re4 {[%clk 0:00:53]} 32. Qd7 {[%clk 0:00:33]}  Re2 {[%clk 0:00:49]} 33. Rf1 {[%clk 0:00:31]}  Qb3 {[%clk 0:00:44]} 34. Qd3+ {[%clk 0:00:26]} 1-0


[Site "https://www.chess.com"]

[Event "Titled Tuesday Blitz March 21 Late 2023"]
[White "Vifleemskaia, Svetlana"]
[Black "Vetoshko, Volodymyr"]
[WhiteFideId "4129490"]
[BlackFideId "14122480"]
[WhiteElo "1930"]
[BlackElo "2422"]
[Result "0-1"]
[Round "01"]
[TimeControl "180+2"]
[Date "2023.03.21"]
[WhiteClock "0:01:19"]
[BlackClock "0:00:50"]

1. d4 {[%clk 0:02:57]}  Nf6 {[%clk 0:02:56]} 2. c4 {[%clk 0:02:57]}  e6 {[%clk 0:02:53]} 3. Nc3 {[%clk 0:02:57]}  d5 {[%clk 0:02:53]} 4. cxd5 {[%clk 0:02:56]}  exd5 {[%clk 0:02:54]} 5. Bg5 {[%clk 0:02:56]}  Bb4 {[%clk 0:02:53]} 6. e3 {[%clk 0:02:56]}  h6 {[%clk 0:02:53]} 7. Bh4 {[%clk 0:02:56]}  g5 {[%clk 0:02:53]} 8. Bg3 {[%clk 0:02:56]}  Ne4 {[%clk 0:02:54]} 9. Qc2 {[%clk 0:02:53]}  h5 {[%clk 0:02:53]} 10. f3 {[%clk 0:02:23]}  Nxg3 {[%clk 0:02:53]} 11. hxg3 {[%clk 0:02:22]}  Qe7 {[%clk 0:02:52]} 12. e4 {[%clk 0:02:06]}  dxe4 {[%clk 0:02:35]} 13. Qxe4 {[%clk 0:02:02]}  Be6 {[%clk 0:01:44]} 14. Bb5+ {[%clk 0:01:42]}  c6 {[%clk 0:01:41]} 15. Bd3 {[%clk 0:01:35]}  Nd7 {[%clk 0:01:34]} 16. Ne2 {[%clk 0:01:35]}  O-O-O {[%clk 0:01:22]} 17. a3 {[%clk 0:01:27]}  Bd6 {[%clk 0:01:13]} 18. O-O-O {[%clk 0:01:24]}  Kb8 {[%clk 0:00:52]} 19. Kb1 {[%clk 0:01:19]}  Nf6 {[%clk 0:00:50]} 0-1


[Site "https://www.chess.com"]

[Event "Titled Tuesday Blitz March 21 Late 2023"]
[White "Jessel, Stephen"]
[Black "Smith, Garrett L"]
[WhiteFideId "628859"]
[BlackFideId "2024829"]
[WhiteElo "2268"]
[BlackElo "2313"]
[Result "1-0"]
[Round "01"]
[TimeControl "180+2"]
[Date "2023.03.21"]
[WhiteClock "0:00:11"]
[BlackClock "0:00:17"]

1. g3 {[%clk 0:02:53]}  c5 {[%clk 0:02:56]} 2. c4 {[%clk 0:02:43]}  Nc6 {[%clk 0:02:56]} 3. Bg2 {[%clk 0:02:43]}  e5 {[%clk 0:02:57]} 4. b3 {[%clk 0:02:39]}  Nf6 {[%clk 0:02:57]} 5. Bb2 {[%clk 0:02:38]}  d6 {[%clk 0:02:55]} 6. Nc3 {[%clk 0:02:37]}  Be6 {[%clk 0:02:50]} 7. Nf3 {[%clk 0:02:30]}  h6 {[%clk 0:02:48]} 8. O-O {[%clk 0:02:28]}  Be7 {[%clk 0:02:44]} 9. e3 {[%clk 0:02:26]}  d5 {[%clk 0:02:22]} 10. cxd5 {[%clk 0:01:47]}  Nxd5 {[%clk 0:02:23]} 11. d4 {[%clk 0:01:06]}  cxd4 {[%clk 0:02:14]} 12. exd4 {[%clk 0:01:06]}  Nxc3 {[%clk 0:02:05]} 13. Bxc3 {[%clk 0:01:06]}  exd4 {[%clk 0:01:36]} 14. Nxd4 {[%clk 0:01:05]}  Nxd4 {[%clk 0:01:23]} 15. Qxd4 {[%clk 0:01:04]}  Qxd4 {[%clk 0:01:04]} 16. Bxd4 {[%clk 0:01:05]}  O-O {[%clk 0:01:04]} 17. Bxb7 {[%clk 0:01:04]}  Rab8 {[%clk 0:01:04]} 18. Bf3 {[%clk 0:01:01]}  a5 {[%clk 0:01:02]} 19. Kg2 {[%clk 0:00:53]}  Rfd8 {[%clk 0:01:02]} 20. Rfd1 {[%clk 0:00:50]}  Rb4 {[%clk 0:00:55]} 21. Bc3 {[%clk 0:00:45]}  Rb5 {[%clk 0:00:52]} 22. Rxd8+ {[%clk 0:00:41]}  Bxd8 {[%clk 0:00:53]} 23. Rd1 {[%clk 0:00:41]}  Be7 {[%clk 0:00:53]} 24. h4 {[%clk 0:00:32]}  Rc5 {[%clk 0:00:54]} 25. Be1 {[%clk 0:00:25]}  Rc2 {[%clk 0:00:46]} 26. Rd2 {[%clk 0:00:17]}  Rc1 {[%clk 0:00:47]} 27. Re2 {[%clk 0:00:17]}  Bf6 {[%clk 0:00:38]} 28. Bxa5 {[%clk 0:00:16]}  Bf5 {[%clk 0:00:27]} 29. Bd2 {[%clk 0:00:14]}  Ra1 {[%clk 0:00:27]} 30. Be3 {[%clk 0:00:14]}  Bd3 {[%clk 0:00:27]} 31. Rd2 {[%clk 0:00:15]}  Bf1+ {[%clk 0:00:27]} 32. Kh2 {[%clk 0:00:15]}  Bc3 {[%clk 0:00:25]} 33. Rd1 {[%clk 0:00:14]}  Rxd1 {[%clk 0:00:24]} 34. Bxd1 {[%clk 0:00:15]}  Ba6 {[%clk 0:00:22]} 35. Bc5 {[%clk 0:00:16]}  f6 {[%clk 0:00:21]} 36. a4 {[%clk 0:00:15]}  Kf7 {[%clk 0:00:22]} 37. b4 {[%clk 0:00:16]}  Ke6 {[%clk 0:00:22]} 38. Bb3+ {[%clk 0:00:16]}  Kd7 {[%clk 0:00:22]} 39. b5 {[%clk 0:00:16]}  Bb7 {[%clk 0:00:22]} 40. Bc4 {[%clk 0:00:14]}  g5 {[%clk 0:00:22]} 41. hxg5 {[%clk 0:00:13]}  hxg5 {[%clk 0:00:23]} 42. Bb6 {[%clk 0:00:13]}  Be5 {[%clk 0:00:22]} 43. a5 {[%clk 0:00:13]}  g4 {[%clk 0:00:22]} 44. a6 {[%clk 0:00:13]}  Ba8 {[%clk 0:00:23]} 45. Bc5 {[%clk 0:00:12]}  f5 {[%clk 0:00:21]} 46. Be3 {[%clk 0:00:13]}  Bf3 {[%clk 0:00:19]} 47. b6 {[%clk 0:00:12]}  Kc8 {[%clk 0:00:19]} 48. b7+ {[%clk 0:00:12]}  Kb8 {[%clk 0:00:20]} 49. Be6 {[%clk 0:00:11]}  Be4 {[%clk 0:00:17]} 50. Bc8 {[%clk 0:00:11]} 1-0


[Site "https://www.chess.com"]

[Event "Titled Tuesday Blitz March 21 Late 2023"]
[White "Vlassov, Nikolai"]
[Black "Bolanos, Fernando"]
[WhiteFideId "4103360"]
[BlackFideId "3304094"]
[WhiteElo "2324"]
[BlackElo "2166"]
[Result "1-0"]
[Round "01"]
[TimeControl "180+2"]
[Date "2023.03.21"]
[WhiteClock "0:00:47"]
[BlackClock "0:00:28"]

1. e4 {[%clk 0:02:59]}  c5 {[%clk 0:02:53]} 2. c3 {[%clk 0:02:59]}  e5 {[%clk 0:02:52]} 3. Nf3 {[%clk 0:02:58]}  Nc6 {[%clk 0:02:53]} 4. Bc4 {[%clk 0:02:58]}  Nf6 {[%clk 0:02:53]} 5. Ng5 {[%clk 0:02:53]}  d5 {[%clk 0:02:53]} 6. exd5 {[%clk 0:02:53]}  Nxd5 {[%clk 0:02:54]} 7. d4 {[%clk 0:02:53]}  cxd4 {[%clk 0:02:52]} 8. Qf3 {[%clk 0:02:47]}  Be6 {[%clk 0:02:43]} 9. Nxe6 {[%clk 0:02:47]}  fxe6 {[%clk 0:02:44]} 10. O-O {[%clk 0:02:46]}  Nf6 {[%clk 0:02:06]} 11. Bxe6 {[%clk 0:02:43]}  Bc5 {[%clk 0:02:02]} 12. Bg5 {[%clk 0:02:40]}  Qe7 {[%clk 0:01:56]} 13. Bd5 {[%clk 0:02:31]}  e4 {[%clk 0:01:32]} 14. Bxf6 {[%clk 0:02:16]}  exf3 {[%clk 0:01:32]} 15. Bxe7 {[%clk 0:02:16]}  Bxe7 {[%clk 0:01:11]} 16. Bxf3 {[%clk 0:02:12]}  O-O-O {[%clk 0:01:08]} 17. Bxc6 {[%clk 0:02:06]}  bxc6 {[%clk 0:01:07]} 18. cxd4 {[%clk 0:02:06]}  Rxd4 {[%clk 0:01:08]} 19. Nc3 {[%clk 0:02:03]}  Bf6 {[%clk 0:01:04]} 20. Rfd1 {[%clk 0:02:02]}  Rhd8 {[%clk 0:01:05]} 21. Kf1 {[%clk 0:01:57]}  Rd2 {[%clk 0:01:04]} 22. Rxd2 {[%clk 0:01:43]}  Rxd2 {[%clk 0:01:05]} 23. Ne4 {[%clk 0:01:27]}  Rxb2 {[%clk 0:01:05]} 24. Nxf6 {[%clk 0:01:25]}  gxf6 {[%clk 0:01:06]} 25. a4 {[%clk 0:01:22]}  Kc7 {[%clk 0:00:54]} 26. Ra3 {[%clk 0:01:20]}  a5 {[%clk 0:00:36]} 27. Rh3 {[%clk 0:01:19]}  Ra2 {[%clk 0:00:34]} 28. Rxh7+ {[%clk 0:01:17]}  Kb6 {[%clk 0:00:35]} 29. Rh4 {[%clk 0:01:17]}  c5 {[%clk 0:00:35]} 30. Rc4 {[%clk 0:01:06]}  Rb2 {[%clk 0:00:32]} 31. h4 {[%clk 0:00:55]}  Rb4 {[%clk 0:00:32]} 32. Rxb4+ {[%clk 0:00:54]}  axb4 {[%clk 0:00:30]} 33. Ke2 {[%clk 0:00:54]}  c4 {[%clk 0:00:30]} 34. h5 {[%clk 0:00:53]}  Ka5 {[%clk 0:00:27]} 35. h6 {[%clk 0:00:53]}  b3 {[%clk 0:00:28]} 36. h7 {[%clk 0:00:48]}  b2 {[%clk 0:00:28]} 37. h8=Q {[%clk 0:00:47]}  b1=Q {[%clk 0:00:28]} 38. Qa8+ {[%clk 0:00:47]}  Kb4 {[%clk 0:00:28]} 39. Qb7+ {[%clk 0:00:47]} 1-0


[Site "https://www.chess.com"]

[Event "Titled Tuesday Blitz March 21 Late 2023"]
[White "Gontcharov, Vladislav"]
[Black "TigranHH"]
[WhiteFideId "4123492"]
[WhiteElo "2470"]
[BlackElo "2293"]
[Result "1-0"]
[Round "01"]
[TimeControl "180+2"]
[Date "2023.03.21"]
[WhiteClock "0:00:11"]
[BlackClock "0:00:02"]

1. d4 {[%clk 0:02:59]}  Nf6 {[%clk 0:02:59]} 2. c4 {[%clk 0:02:59]}  e6 {[%clk 0:03:00]} 3. Nc3 {[%clk 0:02:59]}  d5 {[%clk 0:03:01]} 4. Bg5 {[%clk 0:02:59]}  Be7 {[%clk 0:03:00]} 5. e3 {[%clk 0:02:59]}  h6 {[%clk 0:02:58]} 6. Bh4 {[%clk 0:02:59]}  Nbd7 {[%clk 0:02:58]} 7. Rc1 {[%clk 0:02:56]}  c6 {[%clk 0:02:57]} 8. Bd3 {[%clk 0:02:51]}  O-O {[%clk 0:02:55]} 9. Nge2 {[%clk 0:02:50]}  Nh5 {[%clk 0:02:36]} 10. Bxe7 {[%clk 0:02:44]}  Qxe7 {[%clk 0:02:37]} 11. O-O {[%clk 0:02:44]}  dxc4 {[%clk 0:02:25]} 12. Bxc4 {[%clk 0:02:43]}  e5 {[%clk 0:02:25]} 13. Bb3 {[%clk 0:02:33]}  Nhf6 {[%clk 0:02:15]} 14. Ng3 {[%clk 0:02:30]}  Nb6 {[%clk 0:02:07]} 15. Re1 {[%clk 0:02:17]}  Bg4 {[%clk 0:02:05]} 16. f3 {[%clk 0:02:14]}  Bd7 {[%clk 0:02:01]} 17. e4 {[%clk 0:02:13]}  Rad8 {[%clk 0:01:55]} 18. dxe5 {[%clk 0:02:13]}  Qxe5 {[%clk 0:01:55]} 19. Qe2 {[%clk 0:02:12]}  Nh5 {[%clk 0:01:47]} 20. Nxh5 {[%clk 0:02:06]}  Qxh5 {[%clk 0:01:48]} 21. Qe3 {[%clk 0:02:05]}  Rfe8 {[%clk 0:01:38]} 22. Ne2 {[%clk 0:02:03]}  Qe5 {[%clk 0:01:27]} 23. Rc5 {[%clk 0:01:48]}  Qxb2 {[%clk 0:01:23]} 24. Ra5 {[%clk 0:01:41]}  Nc8 {[%clk 0:01:11]} 25. Nf4 {[%clk 0:01:35]}  b6 {[%clk 0:01:02]} 26. Rh5 {[%clk 0:01:33]}  Nd6 {[%clk 0:00:48]} 27. g4 {[%clk 0:01:24]}  Re5 {[%clk 0:00:47]} 28. Re2 {[%clk 0:01:20]}  Qa1+ {[%clk 0:00:44]} 29. Kg2 {[%clk 0:01:20]}  c5 {[%clk 0:00:37]} 30. Rd2 {[%clk 0:01:11]}  c4 {[%clk 0:00:28]} 31. Rxd6 {[%clk 0:00:59]}  cxb3 {[%clk 0:00:28]} 32. axb3 {[%clk 0:00:57]}  Rxh5 {[%clk 0:00:27]} 33. Nxh5 {[%clk 0:00:56]}  Qb2+ {[%clk 0:00:27]} 34. Rd2 {[%clk 0:00:49]}  Qe5 {[%clk 0:00:27]} 35. Ng3 {[%clk 0:00:47]}  Qc7 {[%clk 0:00:22]} 36. Qd4 {[%clk 0:00:46]}  Kf8 {[%clk 0:00:20]} 37. Nf5 {[%clk 0:00:45]}  f6 {[%clk 0:00:20]} 38. h4 {[%clk 0:00:37]}  Ke8 {[%clk 0:00:18]} 39. Nxg7+ {[%clk 0:00:36]}  Kf7 {[%clk 0:00:18]} 40. Nf5 {[%clk 0:00:35]}  h5 {[%clk 0:00:18]} 41. g5 {[%clk 0:00:30]}  Qe5 {[%clk 0:00:15]} 42. g6+ {[%clk 0:00:20]}  Kxg6 {[%clk 0:00:14]} 43. Qxe5 {[%clk 0:00:20]}  fxe5 {[%clk 0:00:14]} 44. Kf2 {[%clk 0:00:18]}  Kf6 {[%clk 0:00:13]} 45. Ke3 {[%clk 0:00:18]}  Kf7 {[%clk 0:00:13]} 46. Rd6 {[%clk 0:00:17]}  Ke8 {[%clk 0:00:13]} 47. Ng3 {[%clk 0:00:15]}  Ke7 {[%clk 0:00:11]} 48. Rh6 {[%clk 0:00:15]}  Rc8 {[%clk 0:00:08]} 49. Rh7+ {[%clk 0:00:15]}  Kd6 {[%clk 0:00:08]} 50. Kd2 {[%clk 0:00:13]}  Rf8 {[%clk 0:00:07]} 51. Ke3 {[%clk 0:00:13]}  Rc8 {[%clk 0:00:07]} 52. Nxh5 {[%clk 0:00:13]}  Rc3+ {[%clk 0:00:07]} 53. Kf2 {[%clk 0:00:13]}  Rxb3 {[%clk 0:00:07]} 54. Nf6 {[%clk 0:00:13]}  Be6 {[%clk 0:00:05]} 55. Ne8+ {[%clk 0:00:13]}  Kc5 {[%clk 0:00:05]} 56. Rc7+ {[%clk 0:00:13]}  Kd4 {[%clk 0:00:04]} 57. Re7 {[%clk 0:00:13]}  Bc4 {[%clk 0:00:03]} 58. Nd6 {[%clk 0:00:12]}  b5 {[%clk 0:00:02]} 59. Nf5+ {[%clk 0:00:12]}  Kc3 {[%clk 0:00:02]} 60. h5 {[%clk 0:00:11]} 1-0


[Site "https://www.chess.com"]

[Event "Titled Tuesday Blitz March 21 Late 2023"]
[White "victormago"]
[Black "Zhurbinsky, David"]
[BlackFideId "2072904"]
[WhiteElo "2293"]
[BlackElo "2623"]
[Result "1-0"]
[Round "01"]
[TimeControl "180+2"]
[Date "2023.03.21"]
[WhiteClock "0:00:24"]
[BlackClock "0:00:15"]

1. d4 {[%clk 0:02:59]}  Nf6 {[%clk 0:02:59]} 2. c4 {[%clk 0:02:59]}  e6 {[%clk 0:02:59]} 3. Nc3 {[%clk 0:02:58]}  Bb4 {[%clk 0:02:59]} 4. Qc2 {[%clk 0:02:58]}  O-O {[%clk 0:03:00]} 5. Nf3 {[%clk 0:02:57]}  d6 {[%clk 0:02:59]} 6. a3 {[%clk 0:02:54]}  Bxc3+ {[%clk 0:02:58]} 7. Qxc3 {[%clk 0:02:55]}  Nbd7 {[%clk 0:02:58]} 8. g3 {[%clk 0:02:55]}  Qe7 {[%clk 0:02:57]} 9. Bg2 {[%clk 0:02:55]}  e5 {[%clk 0:02:57]} 10. dxe5 {[%clk 0:02:55]}  dxe5 {[%clk 0:02:58]} 11. O-O {[%clk 0:02:55]}  c6 {[%clk 0:02:56]} 12. b4 {[%clk 0:02:54]}  Re8 {[%clk 0:02:49]} 13. Bb2 {[%clk 0:02:52]}  Ne4 {[%clk 0:02:48]} 14. Qc2 {[%clk 0:02:51]}  f5 {[%clk 0:02:40]} 15. Nh4 {[%clk 0:02:47]}  Ndf6 {[%clk 0:02:26]} 16. Nf3 {[%clk 0:02:39]}  a5 {[%clk 0:02:06]} 17. c5 {[%clk 0:02:20]}  axb4 {[%clk 0:02:03]} 18. axb4 {[%clk 0:02:20]}  Rxa1 {[%clk 0:02:03]} 19. Bxa1 {[%clk 0:02:18]}  Nd5 {[%clk 0:01:47]} 20. Rb1 {[%clk 0:02:15]}  Qc7 {[%clk 0:01:28]} 21. e3 {[%clk 0:01:58]}  Nef6 {[%clk 0:01:22]} 22. Qc4 {[%clk 0:01:38]}  Kh8 {[%clk 0:01:14]} 23. b5 {[%clk 0:01:26]}  cxb5 {[%clk 0:00:43]} 24. Qxb5 {[%clk 0:01:19]}  h6 {[%clk 0:00:25]} 25. h3 {[%clk 0:00:55]}  Kh7 {[%clk 0:00:20]} 26. Nd2 {[%clk 0:00:51]}  e4 {[%clk 0:00:13]} 27. Nc4 {[%clk 0:00:47]}  Rd8 {[%clk 0:00:09]} 28. Be5 {[%clk 0:00:41]}  Qf7 {[%clk 0:00:07]} 29. Nd6 {[%clk 0:00:40]}  Qe6 {[%clk 0:00:06]} 30. Bd4 {[%clk 0:00:39]}  Rxd6 {[%clk 0:00:04]} 31. cxd6 {[%clk 0:00:38]}  Qxd6 {[%clk 0:00:05]} 32. Rc1 {[%clk 0:00:38]}  Qf8 {[%clk 0:00:04]} 33. Qc5 {[%clk 0:00:36]}  Qxc5 {[%clk 0:00:03]} 34. Rxc5 {[%clk 0:00:35]}  Bd7 {[%clk 0:00:02]} 35. Bxf6 {[%clk 0:00:34]}  Nxf6 {[%clk 0:00:03]} 36. Rc7 {[%clk 0:00:34]}  Bc6 {[%clk 0:00:03]} 37. Kf1 {[%clk 0:00:34]}  Nd5 {[%clk 0:00:03]} 38. Rc8 {[%clk 0:00:34]}  Kg6 {[%clk 0:00:03]} 39. Ke1 {[%clk 0:00:32]}  Kf7 {[%clk 0:00:04]} 40. Bf1 {[%clk 0:00:32]}  Ke7 {[%clk 0:00:04]} 41. Rg8 {[%clk 0:00:31]}  g5 {[%clk 0:00:04]} 42. Rg6 {[%clk 0:00:30]}  Nf6 {[%clk 0:00:04]} 43. Rxh6 {[%clk 0:00:29]}  Kf7 {[%clk 0:00:04]} 44. Rh8 {[%clk 0:00:27]}  Ng8 {[%clk 0:00:05]} 45. Bc4+ {[%clk 0:00:26]}  Kg7 {[%clk 0:00:03]} 46. Rxg8+ {[%clk 0:00:26]}  Kf6 {[%clk 0:00:04]} 47. Rd8 {[%clk 0:00:26]}  b5 {[%clk 0:00:04]} 48. Bb3 {[%clk 0:00:25]}  Ke5 {[%clk 0:00:03]} 49. h4 {[%clk 0:00:25]}  gxh4 {[%clk 0:00:03]} 50. gxh4 {[%clk 0:00:26]}  f4 {[%clk 0:00:04]} 51. h5 {[%clk 0:00:26]}  Kf6 {[%clk 0:00:04]} 52. Rd6+ {[%clk 0:00:24]}  Kg7 {[%clk 0:00:04]} 53. Rxc6 {[%clk 0:00:24]}  f3 {[%clk 0:00:04]} 54. Kd2 {[%clk 0:00:24]}  b4 {[%clk 0:00:05]} 55. Kc2 {[%clk 0:00:24]}  Kh7 {[%clk 0:00:06]} 56. Bd5 {[%clk 0:00:24]}  Kg7 {[%clk 0:00:07]} 57. Bxe4 {[%clk 0:00:23]}  Kf7 {[%clk 0:00:07]} 58. Bxf3 {[%clk 0:00:23]}  b3+ {[%clk 0:00:08]} 59. Kxb3 {[%clk 0:00:24]}  Kg7 {[%clk 0:00:09]} 60. Kc4 {[%clk 0:00:24]}  Kh7 {[%clk 0:00:10]} 61. Kd5 {[%clk 0:00:24]}  Kg7 {[%clk 0:00:11]} 62. Ke5 {[%clk 0:00:24]}  Kh7 {[%clk 0:00:12]} 63. Kf5 {[%clk 0:00:25]}  Kg7 {[%clk 0:00:13]} 64. Kg5 {[%clk 0:00:25]}  Kf8 {[%clk 0:00:13]} 65. Rc7 {[%clk 0:00:24]}  Ke8 {[%clk 0:00:13]} 66. h6 {[%clk 0:00:24]}  Kd8 {[%clk 0:00:13]} 67. Rb7 {[%clk 0:00:24]}  Ke8 {[%clk 0:00:14]} 68. h7 {[%clk 0:00:24]}  Kf8 {[%clk 0:00:15]} 69. h8=Q# {[%clk 0:00:24]} 1-0


[Site "https://www.chess.com"]

[Event "Titled Tuesday Blitz March 21 Late 2023"]
[White "Barbosa, Evandro Amorim"]
[Black "Jimenez, Joaquin"]
[WhiteFideId "2115824"]
[BlackFideId "109860"]
[WhiteElo "2439"]
[BlackElo "2163"]
[Result "1-0"]
[Round "01"]
[TimeControl "180+2"]
[Date "2023.03.21"]
[WhiteClock "0:00:38"]
[BlackClock "0:00:32"]

1. e4 {[%clk 0:03:00]}  e6 {[%clk 0:02:59]} 2. d3 {[%clk 0:02:51]}  c5 {[%clk 0:02:58]} 3. Nf3 {[%clk 0:02:50]}  Nc6 {[%clk 0:02:58]} 4. g3 {[%clk 0:02:49]}  g6 {[%clk 0:02:58]} 5. Bg2 {[%clk 0:02:48]}  Bg7 {[%clk 0:02:59]} 6. O-O {[%clk 0:02:48]}  Nge7 {[%clk 0:02:58]} 7. c3 {[%clk 0:02:44]}  O-O {[%clk 0:02:55]} 8. d4 {[%clk 0:02:41]}  d5 {[%clk 0:02:54]} 9. e5 {[%clk 0:02:40]}  f6 {[%clk 0:02:49]} 10. Re1 {[%clk 0:02:36]}  fxe5 {[%clk 0:02:46]} 11. dxe5 {[%clk 0:02:34]}  Nf5 {[%clk 0:02:38]} 12. Bf4 {[%clk 0:02:31]}  b6 {[%clk 0:02:30]} 13. Na3 {[%clk 0:02:29]}  Bb7 {[%clk 0:02:28]} 14. Qd2 {[%clk 0:02:27]}  Qe7 {[%clk 0:02:25]} 15. h4 {[%clk 0:02:26]}  d4 {[%clk 0:02:04]} 16. Nc4 {[%clk 0:02:17]}  b5 {[%clk 0:01:55]} 17. Nd6 {[%clk 0:02:15]}  Nxd6 {[%clk 0:01:47]} 18. exd6 {[%clk 0:02:16]}  Qd7 {[%clk 0:01:48]} 19. Bh3 {[%clk 0:01:43]}  Rae8 {[%clk 0:01:45]} 20. Ng5 {[%clk 0:01:43]}  Nd8 {[%clk 0:01:43]} 21. Ne4 {[%clk 0:01:27]}  Qc6 {[%clk 0:01:23]} 22. Bg2 {[%clk 0:01:26]}  e5 {[%clk 0:01:16]} 23. Nf6+ {[%clk 0:01:23]}  Bxf6 {[%clk 0:01:14]} 24. Bxc6 {[%clk 0:01:24]}  Nxc6 {[%clk 0:01:14]} 25. Bg5 {[%clk 0:01:19]}  Bxg5 {[%clk 0:01:12]} 26. Qxg5 {[%clk 0:01:15]}  Rf5 {[%clk 0:01:12]} 27. Qg4 {[%clk 0:01:08]}  Rd8 {[%clk 0:01:10]} 28. a4 {[%clk 0:01:02]}  a6 {[%clk 0:01:04]} 29. axb5 {[%clk 0:01:02]}  axb5 {[%clk 0:01:04]} 30. h5 {[%clk 0:00:56]}  Rxd6 {[%clk 0:01:03]} 31. h6 {[%clk 0:00:54]}  dxc3 {[%clk 0:00:54]} 32. bxc3 {[%clk 0:00:54]}  b4 {[%clk 0:00:55]} 33. Qc4+ {[%clk 0:00:54]}  Rf7 {[%clk 0:00:48]} 34. Qxc5 {[%clk 0:00:54]}  Rdf6 {[%clk 0:00:45]} 35. Rxe5 {[%clk 0:00:40]}  Nxe5 {[%clk 0:00:40]} 36. Qxe5 {[%clk 0:00:41]}  bxc3 {[%clk 0:00:34]} 37. Qb8+ {[%clk 0:00:39]}  Rf8 {[%clk 0:00:32]} 38. Qxb7 {[%clk 0:00:39]}  Rxf2 {[%clk 0:00:32]} 39. Qg7# {[%clk 0:00:38]} 1-0


[Site "https://www.chess.com"]

[Event "Titled Tuesday Blitz March 21 Late 2023"]
[White "Tsyhanchuk, Stanislav"]
[Black "Volkov, Maksim"]
[WhiteFideId "13505130"]
[BlackFideId "54123070"]
[WhiteElo "2173"]
[BlackElo "2312"]
[Result "0-1"]
[Round "01"]
[TimeControl "180+2"]
[Date "2023.03.21"]
[WhiteClock "0:00:01"]
[BlackClock "0:00:52"]

1. e4 {[%clk 0:02:48]}  c5 {[%clk 0:02:59]} 2. Nf3 {[%clk 0:02:48]}  d6 {[%clk 0:03:00]} 3. d4 {[%clk 0:02:48]}  cxd4 {[%clk 0:03:00]} 4. Nxd4 {[%clk 0:02:49]}  Nf6 {[%clk 0:03:00]} 5. Nc3 {[%clk 0:02:49]}  a6 {[%clk 0:03:00]} 6. h4 {[%clk 0:02:48]}  e5 {[%clk 0:02:59]} 7. Nb3 {[%clk 0:02:48]}  Be6 {[%clk 0:02:55]} 8. f4 {[%clk 0:02:47]}  exf4 {[%clk 0:02:40]} 9. Bxf4 {[%clk 0:02:48]}  Nc6 {[%clk 0:02:38]} 10. Qd2 {[%clk 0:02:48]}  Nh5 {[%clk 0:02:10]} 11. O-O-O {[%clk 0:02:12]}  Nxf4 {[%clk 0:02:08]} 12. Qxf4 {[%clk 0:02:13]}  Be7 {[%clk 0:02:03]} 13. Kb1 {[%clk 0:01:58]}  O-O {[%clk 0:02:01]} 14. Be2 {[%clk 0:01:40]}  Bf6 {[%clk 0:01:44]} 15. Nd5 {[%clk 0:01:37]}  Be5 {[%clk 0:01:44]} 16. Qf2 {[%clk 0:01:32]}  b5 {[%clk 0:01:41]} 17. h5 {[%clk 0:01:14]}  h6 {[%clk 0:01:38]} 18. Nd2 {[%clk 0:01:11]}  Nd4 {[%clk 0:01:32]} 19. Nf3 {[%clk 0:01:07]}  Bxd5 {[%clk 0:01:24]} 20. exd5 {[%clk 0:01:00]}  Nxf3 {[%clk 0:01:24]} 21. Qxf3 {[%clk 0:00:59]}  Qg5 {[%clk 0:01:21]} 22. Bd3 {[%clk 0:00:56]}  Rae8 {[%clk 0:01:16]} 23. g4 {[%clk 0:00:50]}  Bf6 {[%clk 0:01:15]} 24. Rhe1 {[%clk 0:00:47]}  Re5 {[%clk 0:01:15]} 25. Rxe5 {[%clk 0:00:33]}  Qxe5 {[%clk 0:01:14]} 26. c3 {[%clk 0:00:33]}  b4 {[%clk 0:01:12]} 27. Qf5 {[%clk 0:00:19]}  Qxf5 {[%clk 0:01:08]} 28. Bxf5 {[%clk 0:00:20]}  bxc3 {[%clk 0:01:08]} 29. bxc3 {[%clk 0:00:21]}  Bxc3 {[%clk 0:01:08]} 30. Kc2 {[%clk 0:00:22]}  Be5 {[%clk 0:01:08]} 31. Rb1 {[%clk 0:00:22]}  g6 {[%clk 0:01:01]} 32. hxg6 {[%clk 0:00:21]}  fxg6 {[%clk 0:01:02]} 33. Bxg6 {[%clk 0:00:21]}  Rf2+ {[%clk 0:01:02]} 34. Kd3 {[%clk 0:00:20]}  Kg7 {[%clk 0:01:01]} 35. Bf5 {[%clk 0:00:17]}  Rxa2 {[%clk 0:01:01]} 36. Rb7+ {[%clk 0:00:17]}  Kf6 {[%clk 0:01:02]} 37. Ke4 {[%clk 0:00:15]}  Ra4+ {[%clk 0:00:58]} 38. Kf3 {[%clk 0:00:12]}  Rf4+ {[%clk 0:00:58]} 39. Ke3 {[%clk 0:00:12]}  h5 {[%clk 0:00:58]} 40. Ra7 {[%clk 0:00:06]}  hxg4 {[%clk 0:00:54]} 41. Be6 {[%clk 0:00:06]}  Ra4 {[%clk 0:00:52]} 42. Rf7+ {[%clk 0:00:04]}  Kg5 {[%clk 0:00:52]} 43. Kf2 {[%clk 0:00:03]}  Ra2+ {[%clk 0:00:51]} 44. Kg1 {[%clk 0:00:03]}  g3 {[%clk 0:00:50]} 45. Kh1 {[%clk 0:00:01]}  g2+ {[%clk 0:00:50]} 46. Kg1 {[%clk 0:00:01]}  Bd4+ {[%clk 0:00:51]} 47. Kh2 {[%clk 0:00:01]}  g1=Q+ {[%clk 0:00:51]} 48. Kh3 {[%clk 0:00:01]}  Rh2# {[%clk 0:00:52]} 0-1


[Site "https://www.chess.com"]